lending/lending_fUSD_20250425
["ID","MTS","AMOUNT","RATE_DAILY","PERIOD"]
[358949135,1745583062191,-500.0,0.00035616,2]
[358949136,1745583062203,-159.470933,0.00035616,7]
[358949137,1745583062214,-198.532772,0.00035616,7]
[358949138,1745583062225,-159.470933,0.00035616,7]
[358949139,1745583062236,-526.56769593,0.00035616,2]
[358949140,1745583062246,-740.34,0.00035616,2]
[358949141,1745583062256,-944.01,0.00035616,2]
[358949142,1745583062266,-159.470933,0.00035616,7]
[358949143,1745583062276,-159.470933,0.00035616,7]
[358949144,1745583062286,-500.0,0.00035616,2]
[358949145,1745583062295,-159.470933,0.00035616,7]
[358949146,1745583062306,-508.6,0.00035616,2]
[358949147,1745583062316,-500.0,0.00035616,2]
[358949148,1745583062327,-500.0,0.00035616,2]
[358949149,1745583062337,-925.93,0.00035616,2]
[358949150,1745583062347,-500.0,0.00035616,2]
[358949151,1745583062359,-500.0,0.00035616,2]
[358949152,1745583062368,-413.7578742,0.00035616,2]
[358949153,1745583062379,-159.470933,0.00035616,7]
[358949154,1745583062389,-159.470933,0.00035616,7]
[358949155,1745583062401,-159.470933,0.00035616,7]
[358949156,1745583062411,-823.83,0.00035616,2]
[358949157,1745583062420,-500.0,0.00035616,2]
[358949158,1745583062430,-159.470933,0.00035616,7]
[358949159,1745583062442,-159.470933,0.00035616,7]
[358949160,1745583062453,-500.0,0.00035616,2]
[358949161,1745583062463,-500.0,0.00035616,2]
[358949162,1745583062476,-500.0,0.00035616,2]
[358949163,1745583062486,-500.0,0.00035616,2]
[358949164,1745583062497,-766.4,0.00035616,2]
[358949165,1745583062508,-590.49811333,0.00035616,2]
[358949166,1745583062519,-230.480614,0.00035616,7]
[358949167,1745583062528,-1156.82,0.00035616,2]
[358949168,1745583062539,-1036.66,0.00035616,2]
[358949169,1745583062550,-230.480614,0.00035616,7]
[358949170,1745583062559,-230.480614,0.00035616,7]
[358949171,1745583062569,-230.480614,0.00035616,7]
[358949172,1745583062579,-500.0,0.00035616,2]
[358949173,1745583062588,-500.0,0.00035616,2]
[358949174,1745583062598,-500.0,0.00035616,2]
[358949175,1745583062608,-230.480614,0.00035616,7]
[358949176,1745583062617,-566.09991193,0.00035616,2]
[358949177,1745583062627,-230.480614,0.00035616,7]
[358949178,1745583062637,-500.0,0.00035616,2]
[358949179,1745583062646,-500.0,0.00035616,2]
[358949180,1745583062656,-500.0,0.00035616,2]
[358949181,1745583062666,-625.02,0.00035616,2]
[358949182,1745583062676,-230.480614,0.00035616,7]
[358949183,1745583062685,-230.480614,0.00035616,7]
[358949184,1745583062695,-230.480614,0.00035616,7]
[358949185,1745583062704,-500.0,0.00035616,2]
[358949186,1745583062713,-230.480614,0.00035616,7]
[358949187,1745583062723,-1045.74,0.00035616,2]
[358949188,1745583062732,-156.13934076,0.00035616,2]
[358949189,1745583062742,-531.61760518,0.00035616,2]
[358949190,1745583062752,-541.62,0.00035616,2]
[358949191,1745583062762,-500.0,0.00035616,2]
[358949192,1745583062772,-500.0,0.00035616,2]
[358949193,1745583062782,-500.0,0.00035616,2]
[358949194,1745583062792,-470.74523015,0.00035616,2]
[358949195,1745583062803,-500.0,0.00035616,2]
[358949196,1745583062813,-1140.56,0.00035616,2]
[358949197,1745583062822,-1106.64,0.00035616,2]
[358949198,1745583062832,-1364.16,0.00035616,2]
[358949199,1745583062842,-887.17,0.00035616,2]
[358949200,1745583062851,-1928.93,0.00035616,2]
[358949201,1745583062860,-1334.25,0.00035616,2]
[358949202,1745583062870,-1153.93,0.00035616,2]
[358949203,1745583062880,-878.99,0.00035616,2]
[358949204,1745583062890,-500.0,0.00035616,2]
[358949205,1745583062899,-500.0,0.00035616,2]
[358949206,1745583062909,-500.0,0.00035616,2]
[358949207,1745583062919,-500.0,0.00035616,2]
[358949208,1745583062929,-500.0,0.00035616,2]
[358949209,1745583062940,-500.0,0.00035616,2]
[358949210,1745583062950,-515.2579594,0.00035616,2]
[358949211,1745583062961,-500.0,0.00035616,2]
[358949212,1745583062970,-896.35,0.00035616,2]
[358949213,1745583062981,-1114.87,0.00035616,2]
[358949214,1745583062991,-500.0,0.00035616,2]
[358949215,1745583063000,-500.0,0.00035616,2]
[358949216,1745583063010,-500.0,0.00035616,2]
[358949217,1745583063020,-185.166163,0.00035616,2]
[358949218,1745583063030,-556.27,0.00035616,2]
[358949219,1745583063040,-500.0,0.00035616,2]
[358949220,1745583063050,-500.0,0.00035616,2]
[358949221,1745583063059,-500.0,0.00035616,2]
[358949222,1745583063069,-185.166163,0.00035616,2]
[358949223,1745583063078,-185.166163,0.00035616,2]
[358949224,1745583063088,-500.0,0.00035616,2]
[358949225,1745583063098,-185.166163,0.00035616,2]
[358949226,1745583063108,-185.166163,0.00035616,2]
[358949227,1745583063118,-500.0,0.00035616,2]
[358949228,1745583063128,-500.0,0.00035616,2]
[358949229,1745583063137,-2054.24,0.00035616,2]
[358949230,1745583063147,-500.0,0.00035616,2]
[358949231,1745583063157,-500.0,0.00035616,2]
[358949232,1745583063167,-500.0,0.00035616,2]
[358949233,1745583063176,-598.28,0.00035616,2]
[358949234,1745583063190,-500.0,0.00035616,2]
[358949235,1745583063199,-500.0,0.00035616,2]
[358949236,1745583063209,-185.166163,0.00035616,2]
[358949237,1745583063219,-500.0,0.00035616,2]
[358949238,1745583063230,-185.166163,0.00035616,2]
[358949239,1745583063240,-1134.2,0.00035616,2]
[358949240,1745583063250,-185.166163,0.00035616,2]
[358949241,1745583063260,-509.3990217,0.00035616,2]
[358949242,1745583063270,-185.166163,0.00035616,2]
[358949243,1745583063280,-500.0,0.00035616,2]
[358949244,1745583063290,-185.166163,0.00035616,2]
[358949245,1745583063300,-500.0,0.00035616,2]
[358949246,1745583063309,-500.0,0.00035616,2]
[358949247,1745583063319,-500.0,0.00035616,2]
[358949248,1745583063330,-500.0,0.00035616,2]
[358949249,1745583063339,-303.2467606,0.00035616,2]
[358949250,1745583063350,-500.0,0.00035616,2]
[358949251,1745583063360,-1021.1,0.00035616,2]
[358949252,1745583063370,-542.37,0.00035616,2]
[358949253,1745583063379,-500.0,0.00035616,2]
[358949254,1745583063389,-500.0,0.00035616,2]
[358949255,1745583063402,-1942.92,0.00035616,2]
[358949256,1745583063412,-500.0,0.00035616,2]
[358949257,1745583063422,-1549.99,0.00035616,2]
[358949258,1745583063431,-500.0,0.00035616,2]
[358949259,1745583063442,-573.99910859,0.00035616,2]
[358949260,1745583063452,-604.126834,0.00035616,7]
[358949261,1745583063462,-1024.21,0.00035616,2]
[358949262,1745583063472,-500.0,0.00035616,2]
[358949263,1745583063482,-604.126834,0.00035616,7]
[358949264,1745583063492,-604.126834,0.00035616,7]
[358949265,1745583063502,-604.126834,0.00035616,7]
[358949266,1745583063513,-500.0,0.00035616,2]
[358949267,1745583063523,-500.0,0.00035616,2]
[358949268,1745583063533,-500.0,0.00035616,2]
[358949269,1745583063545,-500.0,0.00035616,2]
[358949270,1745583063555,-500.0,0.00035616,2]
[358949271,1745583063567,-817.1,0.00035616,2]
[358949272,1745583063577,-500.0,0.00035616,2]
[358949273,1745583063587,-500.0,0.00035616,2]
[358949274,1745583063597,-780.33,0.00035616,2]
[358949275,1745583063607,-657.49,0.00035616,2]
[358949276,1745583063618,-500.0,0.00035616,2]
[358949277,1745583063628,-500.0,0.00035616,2]
[358949278,1745583063638,-500.0,0.00035616,2]
[358949279,1745583063648,-500.0,0.00035616,2]
[358949280,1745583063659,-1626.59,0.00035616,2]
[358949281,1745583063669,-469.47269658,0.00035616,2]
[358949282,1745583063679,-500.0,0.00035616,2]
[358949283,1745583063689,-500.0,0.00035616,2]
[358949284,1745583063699,-500.0,0.00035616,2]
[358949285,1745583063710,-500.0,0.00035616,2]
[358949286,1745583063720,-500.0,0.00035616,2]
[358949287,1745583063731,-604.126834,0.00035616,7]
[358949288,1745583063741,-1186.09,0.00035616,2]
[358949289,1745583063752,-604.126834,0.00035616,7]
[358949290,1745583063763,-534.56,0.00035616,2]
[358949291,1745583063773,-604.126834,0.00035616,7]
[358949292,1745583063783,-500.0,0.00035616,2]
[358949293,1745583063794,-500.0,0.00035616,2]
[358949294,1745583063804,-604.126834,0.00035616,7]
[358949295,1745583063815,-500.0,0.00035616,2]
[358949296,1745583063825,-620.16,0.00035616,2]
[358949297,1745583063836,-1039.27,0.00035616,2]
[358949298,1745583063846,-500.0,0.00035616,2]
[358949299,1745583063856,-500.0,0.00035616,2]
[358949300,1745583063865,-500.0,0.00035616,2]
[358949301,1745583063875,-500.0,0.00035616,2]
[358949302,1745583063885,-500.0,0.00035616,2]
[358949303,1745583063895,-500.0,0.00035616,2]
[358949304,1745583063904,-1185.34,0.00035616,2]
[358949305,1745583063915,-500.0,0.00035616,2]
[358949306,1745583063925,-1109.29,0.00035616,2]
[358949307,1745583063936,-500.0,0.00035616,2]
[358949308,1745583063945,-500.0,0.00035616,2]
[358949309,1745583063956,-500.0,0.00035616,2]
[358949310,1745583063966,-150.0,0.00035639,7]
[358949311,1745583063975,-500.0,0.00035671,2]
[358949312,1745583063986,-162.59671409,0.00035671,30]
[358949313,1745583063995,-232.9064601,0.00035673,5]
[358949314,1745583064007,-500.0,0.00035673,5]
[358949315,1745583064016,-206.20565665,0.00035673,5]
[358949316,1745583064026,-311.56842894,0.00035673,5]
[358949317,1745583064035,-150.0,0.00035714,7]
[358949318,1745583064047,-500.0,0.00035726,2]
[358949319,1745583064057,-500.0,0.0003578,2]
[358949320,1745583064067,-150.0,0.00035788,7]
[358949321,1745583064077,-499.54842546,0.00035835,2]
[358949322,1745583064087,-162.59671409,0.00035863,30]
[358949323,1745583064096,-253.35792997,0.00035863,7]
[358949324,1745583064106,-501.19204534,0.00035873,5]
[358949325,1745583064115,-500.0,0.00035873,5]
[358949326,1745583064125,-500.0,0.00035889,10]
[358949327,1745583064135,-500.0,0.00035889,10]
[358949328,1745583064145,-500.0,0.00035889,10]
[358949329,1745583064154,-500.0,0.00035889,10]
[358949330,1745583064163,-500.0,0.00035889,10]
[358949331,1745583064173,-666.0,0.00035889,10]
[358949332,1745583064182,-607.66505446,0.00035889,10]
[358949333,1745583064192,-823.11,0.00035889,2]
[358949334,1745583064201,-823.11,0.00035889,2]
[358949335,1745583064211,-823.11,0.00035889,2]
[358949336,1745583064220,-823.11,0.00035889,2]
[358949337,1745583064230,-679.02,0.00035889,2]
[358949338,1745583064240,-679.02,0.00035889,2]
[358949339,1745583064250,-679.02,0.00035889,2]
[358949340,1745583064259,-679.02,0.00035889,2]
[358949341,1745583064269,-679.02,0.00035889,2]
[358949342,1745583064280,-500.0,0.00035889,2]
[358949343,1745583064291,-500.0,0.00035889,2]
[358949344,1745583064301,-500.0,0.00035889,2]
[358949345,1745583064311,-500.0,0.00035889,2]
[358949346,1745583064321,-500.0,0.00035889,2]
[358949347,1745583064331,-1135.12,0.00035889,2]
[358949348,1745583064340,-1135.12,0.00035889,2]
[358949349,1745583064349,-1135.12,0.00035889,2]
[358949350,1745583064359,-1135.12,0.00035889,2]
[358949351,1745583064370,-234.580558,0.00035889,7]
[358949352,1745583064379,-500.0,0.00035889,2]
[358949353,1745583064389,-500.0,0.00035889,2]
[358949354,1745583064402,-500.0,0.00035889,2]
[358949355,1745583064411,-500.0,0.00035889,2]
[358949356,1745583064421,-500.0,0.00035889,2]
[358949357,1745583064430,-500.0,0.00035889,2]
[358949358,1745583064442,-500.0,0.00035889,2]
[358949359,1745583064451,-500.0,0.00035889,2]
[358949360,1745583064460,-500.0,0.00035889,2]
[358949361,1745583064471,-150.0,0.00035889,3]
[358949362,1745583064481,-159.273322,0.0003589,2]
[358949363,1745583064491,-585.740612,0.0003589,2]
[358949364,1745583064500,-585.740612,0.0003589,2]
[358949365,1745583064510,-151.0,0.0003589,7]
[358949366,1745583064520,-151.0,0.0003589,7]
[358949367,1745583064530,-264.130984,0.0003589,7]
[358949368,1745583064542,-567.35063336,0.0003589,2]
[358949369,1745583064553,-500.0,0.0003589,2]
[358949370,1745583064563,-500.0,0.0003589,2]
[358949371,1745583064576,-244.749429,0.0003589,7]
[358949372,1745583064587,-500.0,0.0003589,2]
[358949373,1745583064598,-500.0,0.0003589,2]
[358949374,1745583064609,-412.79570467,0.0003589,2]
[358949375,1745583064620,-500.0,0.0003589,2]
[358949376,1745583064631,-513.39571395,0.0003589,2]
[358949377,1745583064643,-260.094496,0.0003589,7]
[358949378,1745583064655,-500.0,0.0003589,2]
[358949379,1745583064666,-500.0,0.0003589,2]
[358949380,1745583064677,-500.0,0.0003589,2]
[358949381,1745583064688,-163.64299581,0.0003589,2]
[358949382,1745583064698,-500.0,0.0003589,2]
[358949383,1745583064708,-500.0,0.0003589,2]
[358949384,1745583064719,-1012.67,0.0003589,2]
[358949385,1745583064729,-290.85297444,0.0003589,2]
[358949386,1745583064739,-500.0,0.0003589,2]
[358949387,1745583064749,-500.0,0.0003589,2]
[358949388,1745583064759,-408.69085565,0.0003589,2]
[358949389,1745583064769,-500.0,0.0003589,2]
[358949390,1745583064779,-500.0,0.0003589,2]
[358949391,1745583064791,-500.0,0.0003589,2]
[358949392,1745583064801,-500.0,0.0003589,2]
[358949393,1745583064811,-500.0,0.0003589,2]
[358949394,1745583064821,-500.0,0.0003589,2]
[358949395,1745583064831,-868.87,0.0003589,2]
[358949396,1745583064841,-553.9462189,0.0003589,2]
[358949397,1745583064851,-797.02,0.0003589,2]
[358949398,1745583064861,-500.0,0.0003589,2]
[358949399,1745583065090,-500.0,0.0003589,2]
[358949400,1745583065102,-582.90857141,0.0003589,2]
[358949401,1745583065113,-500.0,0.0003589,2]
[358949402,1745583065126,-818.13,0.0003589,2]
[358949403,1745583065137,-437.03022952,0.0003589,2]
[358949404,1745583065146,-481.25786437,0.0003589,2]
[358949405,1745583065158,-1161.28,0.0003589,2]
[358949406,1745583065169,-500.0,0.0003589,2]
[358949407,1745583065180,-507.21769414,0.0003589,2]
[358949408,1745583065190,-288.75025776,0.0003589,2]
[358949409,1745583065199,-504.17535787,0.0003589,2]
[358949410,1745583065211,-860.36,0.0003589,2]
[358949411,1745583065222,-500.0,0.0003589,2]
[358949412,1745583065231,-500.0,0.0003589,2]
[358949413,1745583065242,-500.0,0.0003589,2]
[358949414,1745583065253,-500.0,0.0003589,2]
[358949415,1745583065263,-500.0,0.0003589,2]
[358949416,1745583065274,-500.0,0.0003589,2]
[358949417,1745583065283,-500.0,0.0003589,2]
[358949418,1745583065295,-500.0,0.0003589,2]
[358949419,1745583065304,-500.0,0.0003589,2]
[358949420,1745583065314,-500.0,0.0003589,2]
[358949421,1745583065323,-500.0,0.0003589,2]
[358949422,1745583065333,-583.65,0.0003589,2]
[358949423,1745583065343,-500.0,0.0003589,2]
[358949424,1745583065352,-1027.07,0.0003589,2]
[358949425,1745583065362,-522.71033533,0.0003589,2]
[358949426,1745583065371,-500.0,0.0003589,2]
[358949427,1745583065381,-500.0,0.0003589,2]
[358949428,1745583065391,-500.0,0.0003589,2]
[358949429,1745583065403,-500.0,0.0003589,2]
[358949430,1745583065412,-565.61915449,0.0003589,2]
[358949431,1745583065422,-151.0,0.0003589,7]
[358949432,1745583065431,-703.37,0.0003589,2]
[358949433,1745583065442,-199.573055,0.0003589,7]
[358949434,1745583065452,-1062.7,0.0003589,2]
[358949435,1745583065462,-151.0,0.0003589,7]
[358949436,1745583065473,-151.0,0.0003589,7]
[358949437,1745583065483,-151.0,0.0003589,7]
[358949438,1745583065493,-151.0,0.0003589,7]
[358949439,1745583065503,-500.0,0.0003589,2]
[358949440,1745583065512,-286.50340961,0.0003589,2]
[358949441,1745583065522,-151.0,0.0003589,7]
[358949442,1745583065532,-151.0,0.0003589,7]
[358949443,1745583065543,-151.0,0.0003589,7]
[358949444,1745583065554,-151.0,0.0003589,7]
[358949445,1745583065564,-500.0,0.0003589,2]
[358949446,1745583065573,-502.71,0.0003589,2]
[358949447,1745583065583,-500.42,0.0003589,2]
[358949448,1745583065593,-500.0,0.0003589,2]
[358949449,1745583065603,-500.0,0.0003589,2]
[358949450,1745583065613,-536.16701576,0.0003589,2]
[358949451,1745583065622,-522.94,0.0003589,2]
[358949452,1745583065633,-548.23729602,0.0003589,2]
[358949453,1745583065643,-500.0,0.0003589,2]
[358949454,1745583065653,-151.0,0.0003589,7]
[358949455,1745583065663,-151.0,0.0003589,7]
[358949456,1745583065674,-500.0,0.0003589,2]
[358949457,1745583065685,-151.0,0.0003589,7]
[358949458,1745583065694,-151.0,0.0003589,7]
[358949459,1745583065706,-500.0,0.0003589,2]
[358949460,1745583065716,-543.55589988,0.0003589,2]
[358949461,1745583065726,-524.0,0.0003589,2]
[358949462,1745583065735,-500.0,0.0003589,2]
[358949463,1745583065745,-151.0,0.0003589,7]
[358949464,1745583065755,-274.659475,0.0003589,7]
[358949465,1745583065764,-500.0,0.0003589,2]
[358949466,1745583065774,-500.0,0.0003589,2]
[358949467,1745583065784,-582.93,0.0003589,2]
[358949468,1745583065795,-500.0,0.0003589,2]
[358949469,1745583065804,-539.03,0.0003589,2]
[358949470,1745583065814,-500.0,0.0003589,2]
[358949471,1745583065824,-644.39,0.0003589,2]
[358949472,1745583065834,-173.153948,0.0003589,7]
[358949473,1745583065844,-173.153948,0.0003589,7]
[358949474,1745583065854,-173.153948,0.0003589,7]
[358949475,1745583065864,-173.153948,0.0003589,7]
[358949476,1745583065874,-500.0,0.0003589,2]
[358949477,1745583065884,-173.153948,0.0003589,7]
[358949478,1745583065894,-173.153948,0.0003589,7]
[358949479,1745583065904,-173.153948,0.0003589,7]
[358949480,1745583065914,-173.153948,0.0003589,7]
[358949481,1745583065924,-500.0,0.0003589,2]
[358949482,1745583065935,-506.15,0.0003589,2]
[358949483,1745583065944,-649.96,0.0003589,2]
[358949484,1745583065955,-500.0,0.0003589,2]
[358949485,1745583065965,-635.02,0.0003589,2]
[358949486,1745583065975,-612.16100398,0.0003589,2]
[358949487,1745583065986,-500.0,0.0003589,2]
[358949488,1745583065996,-500.0,0.0003589,2]
[358949489,1745583066006,-506.25,0.0003589,2]
[358949490,1745583066016,-917.14,0.0003589,2]
[358949491,1745583066027,-510.89124661,0.0003589,2]
[358949492,1745583066037,-500.0,0.0003589,2]
[358949493,1745583066046,-500.0,0.0003589,2]
[358949494,1745583066056,-500.0,0.0003589,2]
[358949495,1745583066066,-500.0,0.0003589,2]
[358949496,1745583066076,-500.0,0.0003589,2]
[358949497,1745583066086,-500.0,0.0003589,2]
[358949498,1745583066096,-500.0,0.0003589,2]
[358949499,1745583066105,-500.0,0.0003589,2]
[358949500,1745583066115,-500.0,0.0003589,2]
[358949501,1745583066125,-595.85,0.0003589,2]
[358949502,1745583066136,-500.0,0.0003589,2]
[358949503,1745583066147,-500.0,0.0003589,2]
[358949504,1745583066158,-793.45,0.0003589,2]
[358949505,1745583066167,-544.64,0.0003589,2]
[358949506,1745583066177,-500.0,0.0003589,2]
[358949507,1745583066187,-500.0,0.0003589,2]
[358949508,1745583066197,-500.0,0.0003589,2]
[358949509,1745583066207,-500.0,0.0003589,2]
[358949510,1745583066217,-573.41642355,0.0003589,2]
[358949511,1745583066226,-500.0,0.0003589,2]
[358949512,1745583066236,-620.54,0.0003589,2]
[358949513,1745583066246,-544.39,0.0003589,2]
[358949514,1745583066256,-500.0,0.0003589,2]
[358949515,1745583066268,-541.17,0.0003589,2]
[358949516,1745583066277,-755.48,0.0003589,2]
[358949517,1745583066288,-500.0,0.0003589,2]
[358949518,1745583066297,-500.0,0.0003589,2]
[358949519,1745583066307,-500.0,0.0003589,2]
[358949520,1745583066316,-700.11,0.0003589,2]
[358949521,1745583066327,-500.0,0.0003589,2]
[358949522,1745583066339,-500.0,0.0003589,2]
[358949523,1745583066349,-500.0,0.0003589,2]
[358949524,1745583066359,-538.46,0.0003589,2]
[358949525,1745583066376,-500.0,0.0003589,2]
[358949526,1745583066401,-500.0,0.0003589,2]
[358949527,1745583066423,-500.0,0.0003589,2]
[358949528,1745583066447,-500.0,0.0003589,2]
[358949529,1745583066465,-500.0,0.0003589,2]
[358949530,1745583066485,-500.0,0.0003589,2]
[358949531,1745583066506,-592.45875097,0.0003589,2]
[358949532,1745583066528,-500.0,0.0003589,2]
[358949533,1745583066549,-500.0,0.0003589,2]
[358949534,1745583066569,-520.74135844,0.0003589,2]
[358949535,1745583066590,-500.0,0.0003589,2]
[358949536,1745583066612,-1069.68,0.0003589,2]
[358949537,1745583066629,-570.51,0.0003589,2]
[358949538,1745583066645,-500.0,0.0003589,2]
[358949539,1745583066666,-500.0,0.0003589,2]
[358949540,1745583066681,-640.19,0.0003589,2]
[358949541,1745583066698,-500.0,0.0003589,2]
[358949542,1745583066716,-500.0,0.0003589,2]
[358949543,1745583066735,-10810.18,0.0003589,2]
[358949544,1745583066752,-151.0,0.0003589,7]
[358949545,1745583066770,-151.0,0.0003589,7]
[358949546,1745583066790,-151.0,0.0003589,7]
[358949547,1745583066806,-151.0,0.0003589,7]
[358949548,1745583066823,-510.88844777,0.0003589,2]
[358949549,1745583066841,-500.0,0.0003589,2]
[358949550,1745583066860,-644.39530294,0.0003589,2]
[358949551,1745583066876,-151.0,0.0003589,7]
[358949552,1745583066893,-245.880396,0.0003589,7]
[358949553,1745583066910,-500.0,0.0003589,2]
[358949554,1745583066928,-10840.88,0.0003589,2]
[358949555,1745583066945,-500.0,0.0003589,2]
[358949556,1745583066967,-899.41,0.0003589,2]
[358949557,1745583066984,-966.06,0.0003589,2]
[358949558,1745583067001,-4171.73,0.0003589,2]
[358949559,1745583067019,-500.0,0.0003589,2]
[358949560,1745583067039,-500.0,0.0003589,2]
[358949561,1745583067056,-500.0,0.0003589,2]
[358949562,1745583067073,-500.0,0.0003589,2]
[358949563,1745583067091,-500.0,0.0003589,2]
[358949564,1745583067109,-500.0,0.0003589,2]
[358949565,1745583067135,-518.65802727,0.0003589,2]
[358949566,1745583067153,-500.0,0.0003589,2]
[358949567,1745583067171,-500.0,0.0003589,2]
[358949568,1745583067190,-500.0,0.0003589,2]
[358949569,1745583067207,-1032.19,0.0003589,2]
[358949570,1745583067225,-500.0,0.0003589,2]
[358949571,1745583067243,-500.0,0.0003589,2]
[358949572,1745583067260,-500.0,0.0003589,2]
[358949573,1745583067278,-500.0,0.0003589,2]
[358949574,1745583067296,-568.252193,0.0003589,2]
[358949575,1745583067314,-572.38732694,0.0003589,2]
[358949576,1745583067333,-568.252193,0.0003589,2]
[358949577,1745583067351,-1128.15,0.0003589,2]
[358949578,1745583067370,-235.74284125,0.0003589,2]
[358949579,1745583067388,-500.0,0.0003589,2]
[358949580,1745583067409,-500.0,0.0003589,2]
[358949581,1745583067426,-734.64,0.0003589,2]
[358949582,1745583067446,-585.95866082,0.0003589,2]
[358949583,1745583067463,-500.0,0.0003589,2]
[358949584,1745583067481,-500.0,0.0003589,2]
[358949585,1745583067499,-500.0,0.0003589,2]
[358949586,1745583067518,-500.0,0.0003589,2]
[358949587,1745583067535,-500.0,0.0003589,2]
[358949588,1745583067553,-500.0,0.0003589,2]
[358949589,1745583067572,-151.0,0.0003589,7]
[358949590,1745583067590,-151.0,0.0003589,7]
[358949591,1745583067609,-151.0,0.0003589,7]
[358949592,1745583067627,-151.0,0.0003589,7]
[358949593,1745583067646,-551.11718966,0.0003589,2]
[358949594,1745583067664,-500.0,0.0003589,2]
[358949595,1745583067683,-500.0,0.0003589,2]
[358949596,1745583067701,-500.0,0.0003589,2]
[358949597,1745583067719,-542.53,0.0003589,2]
[358949598,1745583067736,-500.0,0.0003589,2]
[358949599,1745583067754,-500.0,0.0003589,2]
[358949600,1745583067772,-2830.29,0.0003589,2]
[358949601,1745583067790,-500.0,0.0003589,2]
[358949602,1745583067807,-500.0,0.0003589,2]
[358949603,1745583067825,-500.0,0.0003589,2]
[358949604,1745583067843,-500.0,0.0003589,2]
[358949605,1745583067861,-500.0,0.0003589,2]
[358949606,1745583067880,-500.0,0.0003589,2]
[358949607,1745583067897,-540.83172767,0.0003589,2]
[358949608,1745583067915,-500.0,0.0003589,2]
[358949609,1745583067933,-500.0,0.0003589,2]
[358949610,1745583067950,-500.0,0.0003589,2]
[358949611,1745583067969,-500.0,0.0003589,2]
[358949612,1745583067986,-500.0,0.0003589,2]
[358949613,1745583068004,-500.0,0.0003589,2]
[358949614,1745583068021,-994.75,0.0003589,2]
[358949615,1745583068038,-500.0,0.0003589,2]
[358949616,1745583068055,-500.0,0.0003589,2]
[358949617,1745583068073,-1123.78,0.0003589,2]
[358949618,1745583068089,-500.0,0.0003589,2]
[358949619,1745583068107,-500.0,0.0003589,2]
[358949620,1745583068124,-623.9,0.0003589,2]
[358949621,1745583068141,-500.0,0.0003589,2]
[358949622,1745583068159,-500.0,0.0003589,2]
[358949623,1745583068175,-500.0,0.0003589,2]
[358949624,1745583068192,-552.09718626,0.0003589,2]
[358949625,1745583068209,-663.3,0.0003589,2]
[358949626,1745583068226,-548.46153493,0.0003589,2]
[358949627,1745583068242,-500.0,0.0003589,2]
[358949628,1745583068260,-500.0,0.0003589,2]
[358949629,1745583068277,-1449.12,0.0003589,2]
[358949630,1745583068294,-566.72,0.0003589,2]
[358949631,1745583068311,-531.01875514,0.0003589,2]
[358949632,1745583068329,-500.0,0.0003589,2]
[358949633,1745583068346,-500.0,0.0003589,2]
[358949634,1745583068363,-500.0,0.0003589,2]